[Event "3rd Gujarat GM Open 2022"]
[Site "Ahmedabad"]
[Date "2022.04.02"]
[Round "4.6"]
[White "Abdisalimov, Abdimalik"]
[Black "Bhattacharyya Soham"]
[Result "1-0"]
[ECO "E73"]
[WhiteElo "2435"]
[BlackElo "2004"]
[Annotator "TA"]
[PlyCount "85"]
[EventDate "2022.03.31"]
[EventType "swiss"]
[EventCountry "IND"]
[SourceTitle "playchess.com"]
[Source "ChessBase"]
[SourceQuality "1"]
[TimeControl "5400+30"]

{[%evp 16,85,37,29,45,38,25,25,49,21,41,0,20,21,19,0,75,75,70,41,70,76,80,57,77,7,88,43,97,102,120,110,181,92,139,116,187,180,165,166,198,197,237,229,237,231,256,264,318,319,324,321,313,319,414,407,351,350,3092,3061,1575,683,3345,2030,29970,11472,29981,29968,29987,29988,29988,29989]} 1. d4 {[%emt 0:05:17]} Nf6 {[%emt 0:00:32]} 2. c4 {[%emt 0:00:08]} g6 {[%emt 0:00:07]} 3. Nc3 {[%emt 0:00:32]} Bg7 {[%emt 0:00:22]} 4. e4 {[%emt 0:00:06]} d6 {[%emt 0:00:09]} 5. Be2 {[%emt 0:00:13]} O-O {[%emt 0:01:35]} 6. Bg5 {[%emt 0:00:04]} Na6 {[%emt 0:09:26]} 7. Qd2 {[%emt 0:01:09]} Qe8 {[%emt 0:01:28]} 8. Bd3 {[%emt 0:04:33]} e5 {[%emt 0:09:16]} 9. d5 $1 {[%emt 0:00:11]} c6 {[%emt 0:00:05] E73: King's Indian: Averbakh Variation without 6...c5.} 10. Nge2 {[%emt 0:01:09]} cxd5 {[%emt 0:00:58] [#]} 11. exd5 $146 {[%emt 0:12:18]} ({Predecessor:} 11. cxd5 Bd7 12. f3 Nc5 13. Bc2 a5 14. g4 b5 15. Ng3 b4 16. Nce2 Qb8 17. Nc1 {½-½ (44) Sielecki,C (2390)-Glek,I (2576) Belgium 2002}) 11... Bd7 {[%emt 0:09:36] White has an edge.} 12. O-O {[%emt 0:01:57]} Nh5 {[%emt 0:09:21]} 13. Rab1 {[%emt 0:14:29]} Nc5 {[%emt 0:22:58]} 14. Bc2 {[%emt 0:12:38] next b4 is good for White.} a5 {[%emt 0:00:12]} 15. Ng3 {[%emt 0:02:53]} f5 {[%emt 0:10:00]} (15... Nxg3 $11 16. hxg3 Rc8) 16. Nxh5 $16 {[%emt 0:02:48]} gxh5 {[%emt 0:00:22]} 17. Be3 {[%emt 0:02:55]} Qg6 {[%emt 0:01:35]} 18. Kh1 {[%emt 0:03:10]} Kh8 {[%emt 0:02:56]} 19. a3 {[%emt 0:00:07]} a4 {[%emt 0:03:05]} 20. Qd1 {[%emt 0:03:38]} (20. Bxc5 $16 dxc5 21. f3) 20... Nb3 {[%emt 0:05:58]} (20... Qg4 $11 {remains equal.}) 21. f4 {[%emt 0:00:44]} Rg8 {[%emt 0:02:11]} (21... Na5 $1 $14) 22. Bxb3 {[%emt 0:00:43]} axb3 {[%emt 0:00:02]} 23. Qxb3 {[%emt 0:00:56]} Bh6 {[%emt 0:01:23]} (23... h4 $16 {is a better defense.}) 24. Qc2 {[%emt 0:00:37] Active counter play!} (24. Rf2 $18) 24... Qg4 {[%emt 0:00:45]} ({Black should play} 24... Rac8) 25. Qf2 {[%emt 0:00:55]} Bxf4 {[%emt 0:02:12]} (25... h4 $16 {keeps fighting.}) 26. Bxf4 $18 {[%emt 0:00:34]} exf4 {[%emt 0:00:01]} 27. h3 {[%emt 0:00:18]} Qg5 {[%emt 0:00:55]} 28. Rbe1 {[%emt 0:01:59]} Rac8 {[%emt 0:01:02]} 29. Qd4+ {[%emt 0:01:15]} Rg7 {[%emt 0:00:01][%csl Gg7][%cal Rg5g2] [#]} 30. Re2 {[%emt 0:00:39]} Re8 {[%emt 0:01:29] White must now prevent ...Rxe2.} 31. Qxf4 {[%emt 0:00:43]} Qxf4 {[%emt 0:01:21]} 32. Rxe8+ {[%emt 0:00:09]} ({Less strong is} 32. Rxf4 Rge7 $16) 32... Bxe8 {[%emt 0:00:02]} 33. Rxf4 {[%emt 0:00:06][%mdl 4096] Endgame KRB-KRN} Bd7 {[%emt 0:00:14]} 34. Nb5 {[%emt 0:01:10]} Bxb5 {[%emt 0:01:57]} 35. cxb5 {[%emt 0:00:02] KR-KR} Rc7 {[%emt 0:00:08]} 36. Rxf5 {[%emt 0:01:28]} Rc2 $2 {[%emt 0:00:08] [#]} (36... Kg7 37. Rg5+ Kf6 38. Rxh5 b6) 37. Rf7 {[%emt 0:00:37]} b6 {[%emt 0:00:43]} 38. Rb7 {[%emt 0:00:15]} Rc5 {[%emt 0:00:06]} 39. Rxb6 {[%emt 0:00:08]} Rxd5 {[%emt 0:00:03]} 40. a4 {[%emt 0:00:14]} (40. Rb7 $142 Kg8 41. a4 Rd1+ 42. Kh2 Ra1 43. Ra7 Rf1 44. b6 Rf4 45. b7) 40... Rd2 {[%emt 0:00:15]} 41. a5 {[%emt 0:00:10][%cal Ba4a5,Ba5a6][%mdl 32] White mates.} Rxb2 {[%emt 0:00:07]} 42. a6 {[%emt 0:00:02]} Ra2 {[%emt 0:00:09]} 43. Rb7 {[%emt 0:00:05] Weighted Error Value: White=0.15 (very precise) /Black=0.76} 1-0

[Event "3rd Gujarat GM Open 2022"]
[Site "Ahmedabad"]
[Date "2022.04.02"]
[Round "4.7"]
[White "Nitin, S.."]
[Black "Bhosale Shriraj"]
[Result "1-0"]
[ECO "B12"]
[WhiteElo "2427"]
[BlackElo "1959"]
[Annotator "NA"]
[PlyCount "135"]
[EventDate "2022.03.31"]
[EventType "swiss"]
[EventCountry "IND"]
[SourceTitle "playchess.com"]
[Source "ChessBase"]
[SourceQuality "1"]
[TimeControl "5400+30"]

1. e4 {[%emt 0:03:21]} c6 {[%emt 0:00:24]} 2. d4 {[%emt 0:00:41]} d5 {[%emt 0:00:20]} 3. e5 {[%emt 0:00:09]} c5 {[%emt 0:00:45]} 4. Nf3 {[%emt 0:01:33]} Bg4 {[%emt 0:01:47]} 5. dxc5 {[%emt 0:00:27]} Nc6 {[%emt 0:02:36]} 6. Bb5 {[%emt 0:03:42]} Qa5+ {[%emt 0:05:14]} 7. Nc3 {[%emt 0:00:33]} e6 {[%emt 0:02:38]} 8. Be3 {[%emt 0:04:21]} Nge7 {[%emt 0:03:37]} 9. O-O {[%emt 0:17:44]} a6 {[%emt 0:02:15]} 10. Ba4 {[%emt 0:05:19]} Nf5 {[%emt 0:04:41]} 11. h3 {[%emt 0:01:48]} Bxf3 {[%emt 0:08:43]} 12. Qxf3 {[%emt 0:00:27]} Bxc5 {[%emt 0:01:39]} 13. Nxd5 {[%emt 0:05:13]} Qxa4 {[%emt 0:07:36]} 14. Bxc5 {[%emt 0:02:04]} Qc4 {[%emt 0:00:31]} 15. Nc7+ {[%emt 0:01:47]} Kd7 {[%emt 0:01:02]} 16. Nxa8 {[%emt 0:03:52]} Qxc5 {[%emt 0:01:21]} 17. g4 {[%emt 0:00:12]} Nh6 {[%emt 0:04:40]} 18. Rfd1+ {[%emt 0:03:17]} Ke7 {[%emt 0:02:25]} 19. b4 {[%emt 0:00:08]} Qa7 {[%emt 0:06:49]} 20. Nc7 {[%emt 0:03:30]} Nxe5 {[%emt 0:06:36]} 21. Qc3 {[%emt 0:03:39]} f6 {[%emt 0:03:01]} 22. Nb5 {[%emt 0:01:45]} Qb8 {[%emt 0:06:04]} 23. Qc5+ {[%emt 0:00:40]} Kf7 {[%emt 0:00:43]} 24. Nd6+ {[%emt 0:00:10]} Kg6 {[%emt 0:00:32]} 25. Qe3 {[%emt 0:01:03]} Nhf7 {[%emt 0:02:24]} 26. Nxf7 {[%emt 0:02:57]} Nxf7 {[%emt 0:02:58]} 27. Qxe6 {[%emt 0:00:35]} Qf4 {[%emt 0:01:37]} 28. Rd4 {[%emt 0:03:38]} Qf3 {[%emt 0:02:48]} 29. Qe4+ {[%emt 0:03:00]} Qxe4 {[%emt 0:00:22]} 30. Rxe4 {[%emt 0:00:04]} Rc8 {[%emt 0:00:24]} 31. Rc1 {[%emt 0:00:44]} Ng5 {[%emt 0:01:12]} 32. Re3 {[%emt 0:00:09]} Rc4 {[%emt 0:00:06]} 33. c3 {[%emt 0:00:11]} h5 {[%emt 0:00:42]} 34. gxh5+ {[%emt 0:00:07]} Kxh5 {[%emt 0:00:14]} 35. Rd1 {[%emt 0:00:11]} f5 {[%emt 0:01:58]} 36. Rd4 {[%emt 0:00:46]} Rc6 {[%emt 0:00:26]} 37. Kf1 {[%emt 0:02:07]} b5 {[%emt 0:00:46]} 38. Rd5 {[%emt 0:02:49]} g6 {[%emt 0:00:24]} 39. Ke2 {[%emt 0:02:47]} Kh6 {[%emt 0:01:45]} 40. Rc5 {[%emt 0:07:15]} Rd6 {[%emt 0:00:31]} 41. c4 {[%emt 0:00:28]} f4 {[%emt 0:03:49]} 42. Re8 {[%emt 0:01:49]} Rd4 {[%emt 0:02:00]} 43. cxb5 {[%emt 0:01:19]} Rxb4 {[%emt 0:00:07]} 44. Rh8+ {[%emt 0:05:51]} Kg7 {[%emt 0:00:30]} 45. Rxg5 {[%emt 0:00:19]} Kxh8 {[%emt 0:00:15]} 46. bxa6 {[%emt 0:00:06]} Ra4 {[%emt 0:03:06]} 47. Rxg6 {[%emt 0:00:05]} Kh7 {[%emt 0:00:30]} 48. Rb6 {[%emt 0:00:20]} Ra3 {[%emt 0:00:35]} 49. h4 {[%emt 0:00:31]} f3+ {[%emt 0:00:56]} 50. Kd2 {[%emt 0:00:59]} Rxa2+ {[%emt 0:01:55]} 51. Ke3 {[%emt 0:00:06]} Ra3+ {[%emt 0:00:05]} 52. Kf4 {[%emt 0:00:45]} Kg7 {[%emt 0:00:42]} 53. h5 {[%emt 0:01:54]} Kh7 {[%emt 0:00:30]} 54. Ke4 {[%emt 0:00:09]} Kg7 {[%emt 0:00:38]} 55. Kf4 {[%emt 0:02:24]} Kh7 {[%emt 0:00:14]} 56. Rg6 {[%emt 0:00:32]} Rb3 {[%emt 0:02:19]} 57. Kg4 {[%emt 0:02:41]} Ra3 {[%emt 0:00:47]} 58. Rc6 {[%emt 0:00:26]} Kg7 {[%emt 0:00:39]} 59. Rc7+ {[%emt 0:00:09]} Kh6 {[%emt 0:00:20]} 60. Ra7 {[%emt 0:00:45]} Ra4+ {[%emt 0:01:49]} 61. Kxf3 {[%emt 0:00:06]} Kxh5 {[%emt 0:01:47]} 62. Ra8 {[%emt 0:00:07]} Kg6 {[%emt 0:00:19]} 63. Ke3 {[%emt 0:00:09]} Ra3+ {[%emt 0:00:10]} 64. Kd4 {[%emt 0:00:23]} Ra5 {[%emt 0:00:12]} 65. Kc4 {[%emt 0:00:15]} Kg7 {[%emt 0:00:26]} 66. a7 {[%emt 0:01:49]} Ra4+ {[%emt 0:00:14]} 67. Kb3 {[%emt 0:00:07]} Ra6 {[%emt 0:00:12]} 68. f4 {[%emt 0:05:11]} 1-0

[Event "3rd Gujarat GM Open 2022"]
[Site "Ahmedabad"]
[Date "2022.04.02"]
[Round "4.8"]
[White "Ilamparthi A R"]
[Black "Hesham, Abdelrahman"]
[Result "0-1"]
[ECO "A24"]
[WhiteElo "1969"]
[BlackElo "2425"]
[Annotator "NA"]
[PlyCount "104"]
[EventDate "2022.03.31"]
[EventType "swiss"]
[EventCountry "IND"]
[SourceTitle "playchess.com"]
[Source "ChessBase"]
[SourceQuality "1"]
[TimeControl "5400+30"]

1. Nf3 {[%emt 0:00:02]} Nf6 {[%emt 0:03:09]} 2. g3 {[%emt 0:00:06]} g6 {[%emt 0:00:13]} 3. Bg2 {[%emt 0:00:04]} Bg7 {[%emt 0:00:05]} 4. c4 {[%emt 0:00:05]} O-O {[%emt 0:00:11]} 5. O-O {[%emt 0:00:04]} d6 {[%emt 0:01:56]} 6. Nc3 {[%emt 0:00:10]} e5 {[%emt 0:00:16]} 7. d3 {[%emt 0:00:06]} h6 {[%emt 0:03:24]} 8. Rb1 {[%emt 0:01:44]} Re8 {[%emt 0:00:25]} 9. Nd2 {[%emt 0:04:22]} c6 {[%emt 0:00:42]} 10. b4 {[%emt 0:01:12]} d5 {[%emt 0:01:12]} 11. b5 {[%emt 0:01:53]} Be6 {[%emt 0:02:56]} 12. bxc6 {[%emt 0:15:23]} bxc6 {[%emt 0:00:31]} 13. Qa4 {[%emt 0:00:06]} Qc8 {[%emt 0:03:13]} 14. Ba3 {[%emt 0:04:58]} Nbd7 {[%emt 0:00:37]} 15. cxd5 {[%emt 0:01:53]} cxd5 {[%emt 0:00:25]} 16. Nb5 {[%emt 0:07:32]} Nb6 {[%emt 0:00:44]} 17. Qa5 {[%emt 0:00:27]} Qd7 {[%emt 0:08:37]} 18. Nb3 {[%emt 0:06:58]} a6 {[%emt 0:16:56]} 19. Nc3 {[%emt 0:27:37]} Qd8 {[%emt 0:02:04]} 20. Nc5 {[%emt 0:01:14]} Nbd7 {[%emt 0:00:15]} 21. Qxd8 {[%emt 0:00:13]} Rexd8 {[%emt 0:01:18]} 22. Nxe6 {[%emt 0:00:45]} fxe6 {[%emt 0:00:02]} 23. Bh3 {[%emt 0:00:17]} Kf7 {[%emt 0:01:42]} 24. Rb7 {[%emt 0:03:11]} Rac8 {[%emt 0:09:19]} 25. Na4 {[%emt 0:01:44]} Rc6 {[%emt 0:00:49]} 26. Rc1 {[%emt 0:03:54]} Rxc1+ {[%emt 0:01:33]} 27. Bxc1 {[%emt 0:00:01]} Bf8 {[%emt 0:03:23]} 28. Ra7 {[%emt 0:01:47]} Rc8 {[%emt 0:04:00]} 29. Bb2 {[%emt 0:00:49]} Bd6 {[%emt 0:00:41]} 30. Rxa6 {[%emt 0:00:56]} Ke7 {[%emt 0:00:05]} 31. Nb6 {[%emt 0:02:48]} Rc2 {[%emt 0:00:50]} 32. e3 {[%emt 0:02:17]} g5 {[%emt 0:03:41]} 33. Nxd7 {[%emt 0:01:50]} Nxd7 {[%emt 0:03:24]} 34. Ba3 {[%emt 0:00:07]} Bxa3 {[%emt 0:00:09]} 35. Rxa3 {[%emt 0:00:01]} Nc5 {[%emt 0:00:31]} 36. Bf1 {[%emt 0:01:35]} Rd2 {[%emt 0:00:21]} 37. Ra7+ {[%emt 0:04:03]} Kf6 {[%emt 0:01:06]} 38. Ra3 {[%emt 0:01:47]} g4 {[%emt 0:00:54]} 39. h3 {[%emt 0:03:13]} gxh3 {[%emt 0:00:38]} 40. Bxh3 {[%emt 0:00:01]} Nxd3 {[%emt 0:06:05]} 41. Ra6 {[%emt 0:00:05]} Nxf2 {[%emt 0:00:23]} 42. Rxe6+ {[%emt 0:00:47]} Kg7 {[%emt 0:01:33]} 43. Bg2 {[%emt 0:02:21]} e4 {[%emt 0:00:10]} 44. Rd6 {[%emt 0:00:17]} Ng4 {[%emt 0:00:06]} 45. Bxe4 {[%emt 0:01:39]} Rd1+ {[%emt 0:00:07]} 46. Kg2 {[%emt 0:00:02]} dxe4 {[%emt 0:00:06]} 47. Rxd1 {[%emt 0:00:07]} Nxe3+ {[%emt 0:00:03]} 48. Kf2 {[%emt 0:00:03]} Nxd1+ {[%emt 0:00:06]} 49. Ke2 {[%emt 0:00:02]} Nc3+ {[%emt 0:00:07]} 50. Ke3 {[%emt 0:00:03]} Nxa2 {[%emt 0:00:12]} 51. Kxe4 {[%emt 0:00:04]} Kg6 {[%emt 0:00:03]} 52. Kf3 {[%emt 0:00:09]} Kg5 {[%emt 0:00:05]} 0-1

[Event "3rd Gujarat GM Open 2022"]
[Site "Ahmedabad"]
[Date "2022.04.02"]
[Round "4.9"]
[White "Neelotpal, Das"]
[Black "Pawar, Harshit"]
[Result "1-0"]
[ECO "B01"]
[WhiteElo "2409"]
[BlackElo "1921"]
[Annotator "NA"]
[PlyCount "65"]
[EventDate "2022.03.31"]
[EventType "swiss"]
[EventCountry "IND"]
[SourceTitle "playchess.com"]
[Source "ChessBase"]
[SourceQuality "1"]
[TimeControl "5400+30"]

1. e4 d5 {[%emt 0:02:23]} 2. exd5 {[%emt 0:00:06]} Qxd5 {[%emt 0:00:04]} 3. Nc3 {[%emt 0:00:17]} Qa5 {[%emt 0:00:06]} 4. d4 {[%emt 0:00:06]} c6 5. Bd2 {[%emt 0:00:22]} Nf6 {[%emt 0:01:51]} 6. Bc4 {[%emt 0:00:07]} Bf5 {[%emt 0:00:50]} 7. Nd5 {[%emt 0:04:04]} Qd8 {[%emt 0:00:25]} 8. Nxf6+ {[%emt 0:00:05]} exf6 {[%emt 0:00:27]} 9. Qe2+ {[%emt 0:24:15]} Be7 {[%emt 0:01:05]} 10. O-O-O {[%emt 0:01:29]} Qxd4 {[%emt 0:16:39]} 11. Be3 {[%emt 0:10:10]} Qe4 {[%emt 0:05:16]} 12. Nf3 {[%emt 0:07:39]} Be6 {[%emt 0:07:14]} 13. Rd4 {[%emt 0:01:48]} Bxc4 {[%emt 0:06:04]} 14. Rxc4 {[%emt 0:05:25]} Qe6 {[%emt 0:01:29]} 15. Nd4 {[%emt 0:01:24]} Qd5 {[%emt 0:03:13]} 16. Rd1 {[%emt 0:01:14]} O-O {[%emt 0:02:14]} 17. Nxc6 {[%emt 0:00:36]} Qe6 {[%emt 0:00:14]} 18. Nxe7+ {[%emt 0:02:29]} Qxe7 {[%emt 0:00:07]} 19. Qg4 {[%emt 0:01:02]} Re8 {[%emt 0:06:15]} 20. Re4 {[%emt 0:11:21]} Qf8 {[%emt 0:01:01]} 21. Bc5 {[%emt 0:04:42]} Rxe4 {[%emt 0:00:21]} 22. Qxe4 {[%emt 0:00:04]} Qc8 {[%emt 0:00:13]} 23. Qxb7 {[%emt 0:00:21]} Nc6 {[%emt 0:00:48]} 24. Qxc8+ {[%emt 0:00:04]} Rxc8 {[%emt 0:00:03]} 25. b4 {[%emt 0:01:08]} a6 {[%emt 0:02:25]} 26. Kb2 {[%emt 0:02:50]} h5 {[%emt 0:01:14]} 27. h4 {[%emt 0:02:49]} Rb8 {[%emt 0:00:47]} 28. a3 {[%emt 0:01:02]} Ne5 {[%emt 0:00:28]} 29. Kb3 {[%emt 0:00:07]} a5 {[%emt 0:00:42]} 30. c4 {[%emt 0:01:01]} g5 {[%emt 0:00:19]} 31. hxg5 {[%emt 0:00:12]} a4+ {[%emt 0:00:12]} 32. Kc3 {[%emt 0:00:37]} fxg5 {[%emt 0:00:08]} 33. Rd5 {[%emt 0:00:10]} 1-0

[Event "3rd Gujarat GM Open 2022"]
[Site "Ahmedabad"]
[Date "2022.04.02"]
[Round "4.10"]
[White "Anilkumar, O.T."]
[Black "Gusain, Himal"]
[Result "1-0"]
[ECO "D00"]
[WhiteElo "1915"]
[BlackElo "2408"]
[Annotator "TA"]
[PlyCount "91"]
[EventDate "2022.03.31"]
[EventType "swiss"]
[EventCountry "IND"]
[SourceTitle "playchess.com"]
[Source "ChessBase"]
[SourceQuality "1"]
[TimeControl "5400+30"]

{[%evp 9,91,12,35,38,72,91,188,151,189,188,199,130,131,128,157,149,210,213,331,331,335,320,309,310,436,425,430,419,442,438,463,440,642,557,614,531,516,517,531,418,584,493,502,502,686,663,760,761,782,750,760,642,638,643,667,668,667,653,634,530,539,527,517,511,499,497,782,581,762,634,616,629,654,645,687,692,757,746,714,706,940,937,911,900]} 1. d4 {[%emt 0:00:04]} d5 {[%emt 0:07:37]} 2. Bf4 {[%emt 0:00:09]} c5 {[%emt 0:00:17]} 3. e3 {[%emt 0:00:12]} Nc6 {[%emt 0:00:45]} 4. c3 {[%emt 0:00:07]} Qb6 {[%emt 0:00:08]} 5. Qb3 {[%emt 0:00:21]} c4 {[%emt 0:00:05]} 6. Qc2 {[%emt 0:07:16] D00: 1 d4 d5: Unusual lines.} Bf5 {[%emt 0:10:01] 6...e5 might become the main line.} 7. Qxf5 {[%emt 0:08:56] [#]} e5 $146 {[%emt 0:02:16] [#]} (7... Qxb2 $16 8. Qxd5 Qxa1) ({Predecessor:} 7... Qxb2 8. Qxd5 Qxa1 9. Qb5 e5 10. Qxb7 Rb8 11. Qxc6+ Kd8 12. Qd5+ Kc8 13. Qxc4+ Kd7 {1-0 (20) Dastan,B (2552)-Sanal,V (2515) Ankara 2018}) 8. Nd2 $1 $18 {[%emt 0:01:06] White is clearly better.} g6 {[%emt 0:03:16]} (8... Nge7 9. Qc2) 9. Qc2 {[%emt 0:00:30]} exf4 10. exf4 {[%emt 0:00:30]} (10. e4 $18 Nf6 11. exd5 Nxd5 12. Bxc4 (12. Nxc4 Qd8 $16)) 10... Nf6 {[%emt 0:01:00]} 11. g3 {[%emt 0:00:30]} O-O-O {[%emt 0:01:29]} 12. Ngf3 {[%emt 0:02:41]} Re8+ {[%emt 0:00:06]} (12... h5 $16 13. Ne5 (13. Bh3+ Kb8 $16) 13... Qc7) 13. Ne5 {[%emt 0:01:05]} g5 {[%emt 0:00:56]} (13... Nh5 $142) 14. Qf5+ {[%emt 0:00:24]} (14. fxg5 Nxe5 15. O-O-O Ne4 $15) 14... Re6 {[%emt 0:00:02]} 15. O-O-O {[%emt 0:00:13]} (15. fxg5 Qxb2 16. Rb1 Qxc3 $14) 15... Ne7 {[%emt 0:05:15]} 16. Qc2 {[%emt 0:03:35]} ({Don't take} 16. Qxg5 Rg8 $18) 16... Rg8 {[%emt 0:01:37]} (16... gxf4 {was worth a try.} 17. Nxf7 Rg8) 17. fxg5 {[%emt 0:01:29]} Rxg5 {[%emt 0:02:51]} 18. Bh3 {[%emt 0:02:59]} Rh5 {[%emt 0:00:04]} 19. Bxe6+ {[%emt 0:02:21]} Qxe6 {[%emt 0:00:04]} 20. Rde1 {[%emt 0:01:26][%cal Bd1e1,Be1e5,Be5e6][%mdl 32]} Nfg8 {[%emt 0:02:24]} (20... Nc6 $142 21. Ng6 Qd6) 21. f4 {[%emt 0:00:18]} Qa6 {[%emt 0:02:56]} 22. Qd1 {[%emt 0:05:25]} Rf5 {[%emt 0:02:00]} 23. Kb1 {[%emt 0:01:36]} Nh6 {[%emt 0:00:22]} 24. Ng4 {[%emt 0:02:28]} Nhg8 {[%emt 0:00:19]} 25. Re5 {[%emt 0:00:23] White is clearly winning.} Qg6 {[%emt 0:03:38]} 26. Ka1 {[%emt 0:01:13]} f6 {[%emt 0:00:11]} 27. Re6 {[%emt 0:01:20]} h5 {[%emt 0:01:16] [#]} 28. Ne5 {[%emt 0:04:24]} Rxe5 {[%emt 0:01:40]} (28... Qe8 29. Nef3) 29. dxe5 {[%emt 0:01:16]} Qf7 {[%emt 0:00:21] [#]} 30. Rxf6 $1 {[%emt 0:01:54]} Nxf6 {[%emt 0:00:06]} 31. exf6 {[%emt 0:00:16]} Ng8 {[%emt 0:00:05]} 32. Nf3 {[%emt 0:01:52]} Nxf6 {[%emt 0:00:11]} 33. Ng5 {[%emt 0:00:12]} Qg6 {[%emt 0:03:06]} 34. Qb1 {[%emt 0:00:10]} Qxb1+ {[%emt 0:00:44]} 35. Kxb1 {[%emt 0:00:02][%mdl 4096] Endgame KRN-KBN} Kd7 {[%emt 0:00:06]} 36. Re1 {[%emt 0:01:32]} Bh6 {[%emt 0:00:32]} 37. Re5 {[%emt 0:01:03]} b5 {[%emt 0:00:12]} (37... Bf8 $142 38. Rf5 Be7) 38. a3 {[%emt 0:01:40]} a5 {[%emt 0:00:08]} 39. Kc2 {[%emt 0:00:41]} Bf8 {[%emt 0:00:06]} 40. Rf5 {[%emt 0:00:16]} Be7 {[%emt 0:00:12]} 41. Nf3 {[%emt 0:00:31]} Kd6 {[%emt 0:00:42]} 42. Nd4 {[%emt 0:00:36]} Kc5 {[%emt 0:00:09]} 43. Re5 {[%emt 0:00:21] Threatening mate with Re6.} Bd6 {[%emt 0:00:17]} 44. Re6 {[%emt 0:00:33]} Ng4 {[%emt 0:00:16]} 45. h3 {[%emt 0:01:48]} Nf2 {[%emt 0:00:05] [#]} 46. Nxb5 $1 {[%emt 0:00:09] Weighted Error Value: White=0.24 (precise) /Black=0.58} 1-0

[Event "3rd Gujarat GM Open 2022"]
[Site "Ahmedabad"]
[Date "2022.04.02"]
[Round "4.11"]
[White "Srihari L R"]
[Black "Vaibhav Kalpaka"]
[Result "1-0"]
[ECO "D35"]
[WhiteElo "2400"]
[BlackElo "1859"]
[Annotator "TA"]
[PlyCount "65"]
[EventDate "2022.03.31"]
[EventType "swiss"]
[EventCountry "IND"]
[SourceTitle "playchess.com"]
[Source "ChessBase"]
[SourceQuality "1"]
[TimeControl "5400+30"]

{[%evp 9,65,16,24,21,18,5,18,24,33,4,2,4,12,11,11,4,10,11,12,3,19,2,18,16,21,47,98,84,152,147,148,142,406,413,395,319,607,643,604,650,595,590,708,657,903,897,879,873,1047,1096,1246,1230,1210,1204,6181,5830,29998,29999]} 1. d4 {[%emt 1:31:00] Duda,Jan Krzysztof} d5 {[%emt 1:31:00]} 2. c4 {[%emt 0:00:30]} e6 {[%emt 0:00:30]} 3. Nc3 {[%emt 0:00:30]} Nf6 {[%emt 0:00:30]} 4. cxd5 {[%emt 0:00:30]} Nxd5 {[%emt 0:00:30]} 5. Nf3 {[%emt 0:00:30]} Nxc3 {[%emt 0:00:30]} 6. bxc3 {[%emt 0:00:30] D35: Queen's Gambit Declined: Exchange Variation.} c5 {[%emt 0:00:30]} 7. Rb1 {[%emt 0:00:30]} cxd4 {[%emt 0:00:30]} 8. cxd4 {[%emt 0:00:30] The position is equal.} Nc6 {[%emt 0:00:30][%cal Oe6e5]} 9. e4 {[%emt 0:00:30]} Bb4+ {[%emt 0:00:30]} 10. Bd2 {[%emt 0:00:30]} Bxd2+ {[%emt 0:00:30]} 11. Qxd2 {[%emt 0:00:30]} O-O {[%emt 0:00:30]} 12. Bb5 {[%emt 0:00:30]} Ne7 {[%emt 0:00:30]} 13. O-O {[%emt 0:00:30]} b6 {[%emt 0:00:30]} 14. Rfe1 {[%emt 0:00:30]} Bb7 {[%emt 0:00:30]} 15. h4 {[%emt 0:00:30] [#]} Qd6 $146 {[%emt 0:00:30]} ({Predecessor:} 15... Rc8 16. h5 h6 17. Ne5 Qd6 18. Rb3 f5 19. f3 a6 20. Bf1 b5 21. Qe3 Rfd8 {1-0 (90) So,W (2770)-Duda,J (2743) chess24.com INT 2021 CBM 201 [Duda,Jan Krzysztof]}) 16. h5 {[%emt 0:00:30]} h6 {[%emt 0:00:30]} 17. d5 {[%emt 0:00:30]} exd5 {[%emt 0:00:30]} (17... Rad8 $14) 18. e5 $1 $16 {[%emt 0:00:30]} Qe6 {[%emt 0:00:30]} ({Better is} 18... Qd8) 19. Nd4 {[%emt 0:00:30][%mdl 1024] White has strong compensation.} Qg4 {[%emt 0:00:30]} 20. Be2 $1 $36 {[%emt 0:00:30][%mdl 2048] White is on the roll.} Qg5 {[%emt 0:00:30][%mdl 8192] Black cannot hold the game after this.} (20... Qd7 $16) 21. f4 $1 $18 {[%emt 0:00:30]} Qh4 {[%emt 0:00:30]} 22. Rb3 $1 {[%emt 0:00:30] Strongly threatening Rh3.} Bc8 {[%emt 0:00:30] [#] Against Rh3} (22... Nc6) 23. g3 $1 {[%emt 0:00:30][%cal Bg2g3,Bg3g4][%mdl 32]} Qh3 {[%emt 0:00:30]} 24. g4 $1 {[%emt 0:00:30]} Qh4 {[%emt 0:00:30] [#]} 25. Kg2 $1 {[%emt 0:00:30]} Ng6 {[%emt 0:00:30]} 26. hxg6 {[%emt 0:00:30] Active counter play!} Qe7 {[%emt 0:00:30]} 27. gxf7+ {[%emt 0:00:30]} Rxf7 {[%emt 0:00:30]} 28. e6 {[%emt 0:00:30]} Rf6 {[%emt 0:00:30]} 29. f5 {[%emt 0:00:30]} Bb7 {[%emt 0:00:30]} 30. Rg3 {[%emt 0:00:30]} Raf8 {[%emt 0:00:30]} 31. Rc1 {[%emt 0:00:30]} g6 {[%emt 0:00:30]} 32. Qxh6 {[%emt 0:00:30] g5 would kill now.} Qb4 {[%emt 0:00:30] [#]} 33. Rh3 $1 {[%emt 0:00:30] Weighted Error Value: White=0.03 (flawless) /Black=0.76} 1-0